{"text_format":"1","workbook":"xlsx","n_sheets":4,"sheets":["INSTRUÇÕES (Leia-me)","1 - Preenchimento do plano","2 - Plano para impressão","3 - Justificativa membro ext."],"not_rendered":{"charts":0,"images":2,"macros":1,"external_links":0,"defined_names":4,"comments":0,"pivot_tables":0},"unopened":[],"bounds":{"document_bytes":16777216,"sheet_cells":100000,"rows_first":2000,"rows_last":500,"rows_between":2000,"halvings":0,"cell_chars":16384,"cell_head_chars":4096},"cells_cut":0,"cells_raw":0,"read":"whole","date_system":"1900"}

{"sheet":"INSTRUÇÕES (Leia-me)","index":0,"n_rows":0,"n_cols":0,"rows_kept":0,"cut":false,"hidden":false,"merged":[]}

{"sheet":"1 - Preenchimento do plano","index":1,"n_rows":98,"n_cols":24,"rows_kept":98,"cut":false,"hidden":false,"merged":[[7,16,7,17],[8,16,8,17],[9,16,9,17],[10,16,10,17],[11,16,11,17],[10,1,10,2],[1,1,5,16],[81,3,81,7],[75,3,75,7],[9,5,9,7],[10,5,10,7],[80,3,80,7],[78,3,78,7],[77,3,77,7],[76,3,76,7],[79,3,79,7],[8,5,8,10],[9,8,9,10],[10,8,10,10],[12,16,12,17],[13,16,13,17],[82,3,82,7],[93,3,93,4],[97,3,97,4],[90,3,90,4],[91,3,91,4],[94,3,94,4],[95,3,95,4],[92,3,92,4],[85,3,85,4],[87,3,87,4],[86,3,86,4],[88,3,88,4],[89,3,89,4]]}
[]
[null,"INSTRUÇÕES PARA PREENCHIMENTO: Só é permitido o preenchimento nas células em amarelo. Ao selecionar a célula, informações sobre o preenchimento serão mostradas em caixas de texto. Inconsistências ou erros serão mostrados em alertas em vermelho. Após o preenchimento, conferir no fim da planilha para verificação final no Quadro de verificações. Caso tudo estiver correto, abrir a planilha \"plano para impressão\" para imprimir o documento para assinatura. Se o terceiro membro do comitê de orientação for externo à UDESC, preencher também a planilha \"3-Justificativa membro ext.\" para assinatura e entrega anexa ao plano."]
[]
[]
[]
[]
[]
[null,"NOME:",null,null,null,null,null,null,null,null,null,{"$f":"ISBLANK(C8)","v":true},{"$f":"N(L8)","v":1},null,null,null,{"$f":"IF(M8=0,\"\",\"preencher nome\")","v":"preencher nome"}]
[null,"MATRÍCULA:",null,null,null,"INGRESSO NO CURSO",null,null,null,null,null,{"$f":"ISBLANK(C9)","v":true},{"$f":"N(L9)","v":1},null,null,null,{"$f":"IF(M9=0,\"\",\"preencher matrícula\")","v":"preencher matrícula"}]
[null,null,null,null,null,"Ano:",null,null,null,null,null,{"$f":"ISBLANK(I10)","v":true},1,null,null,null,{"$f":"IF(M10=0,\"\",\"preencher ano\")","v":"preencher ano"},null,null,null,null,null,null,{"$f":"I10","v":0}]
[null,"COMITÊ DE ORIENTAÇÃO",null,null,null,"Semestre:",null,null,null,null,null,{"$f":"ISBLANK(I11)","v":true},1,null,null,null,{"$f":"IF(M11=0,\"\",\"preencher semestre\")","v":"preencher semestre"},null,null,null,null,null,null,{"$f":"I11","v":0}]
[null,"Orientador:",null,null,null,null,null,null,null,null,null,{"$f":"ISBLANK(C12)","v":true},1,null,null,null,{"$f":"IF(M12=0,\"\",\"preencher orientador\")","v":"preencher orientador"}]
[null,"2º Membro:",null,null,null,null,null,null,null,null,null,{"$f":"ISBLANK(C13)","v":true},1,null,null,null,{"$f":"IF(M13=0,\"\",\"preencher orientador substituto\")","v":"preencher orientador substituto"}]
[null,"3º Membro:",null,null,null,null,null,null,null,null,null,{"$f":"ISBLANK(C14)","v":true},1,null,null,null,{"$f":"IF(M14=0,\"\",\"preencher membro do comitê\")","v":"preencher membro do comitê"}]
[]
[null,null,null,"Carga Horária","Créditos","Semestre 1","Semestre 2","Semestre 3","Semestre 4","Aproveitamento ou Validação","dispensa de EDOMEF e LING ESTRA",null,null,null,"creditos obtidos",null,"STATUS"]
[]
[null,"Código","DISCIPLINAS OBRIGATÓRIAS"]
[null,"MCPENF","Metodologia Científica e da Pesquisa",30,2,null,null,null,null,null,null,{"$f":"SUM(F19:J19)","v":0},{"$f":"SUM(F19:J19)","v":0},null,{"$f":"L19*E19","v":0},null,{"$f":"IF(M19=1,\"OK\",\"não\")","v":"não"}]
[null,"MEXENF","Métodos estatístico-experimentais aplicados a Engenharia Florestal",60,4,null,null,null,null,null,null,{"$f":"SUM(F20:J20)","v":0},{"$f":"SUM(F20:J20)","v":0},null,0,null,"não"]
[null,"SEMEN1","Seminarios - Presença",15,1,null,null,null,null,null,null,{"$f":"SUM(F21:I21)","v":0},0,null,0,null,"não"]
[null,"SEMEN2","Seminários - Apresentador",15,1,null,null,null,null,null,null,{"$f":"SUM(F22:I22)","v":0},{"$f":"SUM(G22:J22)","v":0},null,0,null,"não"]
[null,"LING ESTRA","Exame de proficiência em Língua Estrangeira",0,0,null,null,null,null,null,null,{"$f":"SUM(F23+G23+H23+I23)","v":0},{"$f":"SUM(F23+G23+H23+I23+K23)","v":0},null,0,null,"não"]
[null,"EDOMEF","Estágio em docência",30,2,null,null,null,null,null,null,{"$f":"SUM(F24+G24+H24+I24+K24)","v":0},{"$f":"SUM(F24+G24+H24+I24+K24)","v":0},null,0,null,"não"]
[null,null,null,null,null,null,null,null,null,null,null,null,{"$f":"SUM(M19:M24)","v":0},null,{"$f":"SUM(O19:O24)","v":0}]
[]
[null,"Código","DISCIPLINAS DA ÁREA DE CONCENTRAÇÃO"]
[null,"MADCON","A Madeira na Construção",30,2,null,null,null,null,null,null,{"$f":"SUM(F28:J28)","v":0},{"$f":"SUM(F28:J28)","v":0},null,{"$f":"L28*E28","v":0},null,{"$f":"IF(M28=0,\"\",IF(M28=1,\"OK\",IF(M28>1,\"não\")))","v":""}]
[null,"ARAENF","Análise de Regressão Aplicada à Engenharia Florestal",60,4,null,null,null,null,null,null,0,0,null,0,null,{"$f":"IF(M29=0,\"\",IF(M29=1,\"OK\",IF(M29>1,\"não\")))","v":""}]
[null,"AVIMPA","Avaliação de Impactos Ambientais",45,3,null,null,null,null,null,null,0,0,null,0,null,""]
[null,"CELPAP","Celulose e Papel",30,2,null,null,null,null,null,null,{"$f":"SUM(F31:J31)","v":0},{"$f":"SUM(F31:J31)","v":0},null,{"$f":"L31*E31","v":0},null,{"$f":"IF(M31=0,\"\",IF(M31=1,\"OK\",IF(M31>1,\"não\")))","v":""}]
[null,"COFLOR","Colheita Florestal",60,4,null,null,null,null,null,null,{"$f":"SUM(F32:J32)","v":0},{"$f":"SUM(F32:J32)","v":0},null,{"$f":"L32*E32","v":0}]
[null,"COUESF","Conservação e Uso de Espécies Florestais",60,4,null,null,null,null,null,null,0,0,null,0,null,""]
[null,"DENDRO","Dendrologia",60,4,null,null,null,null,null,null,0,0,null,0,null,""]
[null,"DEANVE","Descrição e Análise da Vegetação",60,4,null,null,null,null,null,null,0,0,null,0,null,""]
[null,"ECOFLO","Economia Florestal",60,4,null,null,null,null,null,null,{"$f":"SUM(F36:J36)","v":0},{"$f":"SUM(F36:J36)","v":0},null,{"$f":"L36*E36","v":0}]
[null,"ECOVEG","Ecofisiologia Vegetal",60,4,null,null,null,null,null,null,0,0,null,0,null,""]
[null,"ECFONT","Ecologia de Florestas Neo-Subtropicais",60,4,null,null,null,null,null,null,0,0,null,0,null,""]
[null,"ENEDES","Energia e Desenvolvimento",45,3,null,null,null,null,null,null,0,0,null,0,null,""]
[null,"ENAMIF","Engenharia do Ambiente na Indústria Florestal",60,4,null,null,null,null,null,null,0,0,null,0,null,""]
[null,"FAEDEF","Fauna Edáfica em Ecossistemas Florestais",45,3,null,null,null,null,null,null,{"$f":"SUM(F41:J41)","v":0},{"$f":"SUM(F41:J41)","v":0},null,{"$f":"L41*E41","v":0}]
[null,"FITGEO","Fitogeografia",60,4,null,null,null,null,null,null,0,0,null,0,null,""]
[null,"GEOACF","Geoestatística Aplicada a Ciência Florestal",60,4,null,null,null,null,null,null,{"$f":"SUM(F43:J43)","v":0},{"$f":"SUM(F43:J43)","v":0},null,{"$f":"L43*E43","v":0}]
[null,"GEPOEF","Genética de Populações de Espécies Florestais",60,4,null,null,null,null,null,null,0,0,null,0,null,""]
[null,"GERENA","Gestão de Recursos Naturais Renováveis",30,2,null,null,null,null,null,null,0,0,null,0,null,""]
[null,"GESFLO","Gestão Florestal",45,3,null,null,null,null,null,null,{"$f":"SUM(F46:J46)","v":0},{"$f":"SUM(F46:J46)","v":0},null,{"$f":"L46*E46","v":0}]
[null,"HIMABA","Hidrologia e Manejo de Bacias",60,4,null,null,null,null,null,null,0,0,null,0,null,""]
[null,"IMCPOF","Implantação e Condução de Povoamentos Florestais",60,4,null,null,null,null,null,null,0,0,null,0,null,""]
[null,"MEGEBF","Melhoramento Genético e Biotecnologia Florestal",60,4,null,null,null,null,null,null,{"$f":"SUM(F49:J49)","v":0},{"$f":"SUM(F49:J49)","v":0},null,{"$f":"L49*E49","v":0}]
[null,"MACOFS","Manejo e Conservação da Fauna Silvestre",60,4,null,null,null,null,null,null,0,0,null,{"$f":"L50*E50","v":0},null,""]
[null,"MESAEF","Mecânica dos Sólidos Aplicada à Engenharia Florestal",60,4,null,null,null,null,null,null,0,0,null,{"$f":"L51*E51","v":0},null,""]
[null,"MOCPOF","Modelagem do Crescimento e Produção Florestal",60,4,null,null,null,null,null,null,{"$f":"SUM(F52:J52)","v":0},{"$f":"SUM(F52:J52)","v":0},null,{"$f":"L52*E52","v":0},null,{"$f":"IF(M52=0,\"\",IF(M52=1,\"OK\",IF(M52>1,\"não\")))","v":""}]
[null,"OMESIL","Operações Mecanizadas Silviculturais",60,4,null,null,null,null,null,null,{"$f":"SUM(F53:J53)","v":0},{"$f":"SUM(F53:J53)","v":0},null,{"$f":"L53*E53","v":0}]
[null,"PAREMA","Painéis Reconstituídos de Madeira",30,2,null,null,null,null,null,null,{"$f":"SUM(F54:J54)","v":0},{"$f":"SUM(F54:J54)","v":0},null,{"$f":"L54*E54","v":0},null,{"$f":"IF(M54=0,\"\",IF(M54=1,\"OK\",IF(M54>1,\"não\")))","v":""}]
[null,"POTSEF","Produção e Tecnologia de Sementes Florestais",45,3,null,null,null,null,null,null,0,0,null,0,null,""]
[null,"PROESF","Propagação de Espécies Florestais",45,3,null,null,null,null,null,null,0,0,null,0,null,""]
[null,"QMAPF1","Qualidade da Madeira e Produtos Florestais 1",45,3,null,null,null,null,null,null,0,0,null,0,null,""]
[null,"QMAPF2","Qualidade da Madeira e Produtos Florestais 2",45,3,null,null,null,null,null,null,{"$f":"SUM(F58:J58)","v":0},{"$f":"SUM(F58:J58)","v":0},null,{"$f":"L58*E58","v":0},null,""]
[null,"SAESIC","Silvicultura Aplicada à Espécies de Interesse Comercial",45,3,null,null,null,null,null,null,{"$f":"SUM(F59:J59)","v":0},{"$f":"SUM(F59:J59)","v":0},null,{"$f":"L59*E59","v":0}]
[null,"SERAEF","Sensoriamento Remoto Aplicado à Engenharia Florestal",60,4,null,null,null,null,null,null,0,0,null,0,null,""]
[null,"SINGEO","Sistema de Informação Geográfica",60,4,null,null,null,null,null,null,0,0,null,0,null,""]
[null,"SAMURN","Sociologia Ambiental e Uso dos Recursos Naturais",60,4,null,null,null,null,null,null,0,0,null,0,null,""]
[null,"SOPROF","Solos e Produção Florestal",60,4,null,null,null,null,null,null,0,0,null,0,null,""]
[null,"TRAMEM","Transformação Mecânica da Madeira ",30,2,null,null,null,null,null,null,0,0,null,0,null,""]
[null,"TECMPI","Tópicos Especiais em Caracterização da Madeira e Processos Ind.",45,3,null,null,null,null,null,null,0,0,null,0,null,""]
[null,"TECSAP","Tópicos Especiais em Ciência do Solo Aplicada à Produção Florestal",30,2,null,null,null,null,null,null,0,0,null,0,null,""]
[null,"TECPFN","Tópicos Especiais em Crescimento e Produção de Florestas Nativas e Plantadas",45,3,null,null,null,null,null,null,0,0,null,0,null,""]
[null,"TESEFE","Tópicos Especiais em Ecolog. de Sp. Ftais e Ecossist. Assoc.",45,3,null,null,null,null,null,null,0,0,null,0,null,""]
[null,"TESSIL","Tópicos Especiais em Silvicultura",45,3,null,null,null,null,null,null,0,0,null,0,null,""]
[null,null,null,null,null,null,null,null,null,null,null,null,null,null,{"$f":"SUM(O28:O69)","v":0}]
[]
[null,"Código","DISCIPLINA PARA MANTER-SE MATRICULADO NO CURSO"]
[null,"DISMEF","Elaboração de dissertação",0,0,null,null,null,null,null,null,null,null,null,0]
[]
[null,null,"DISCIPLINAS COM OUTRAS NOMENCLATURAS CURSADAS EM OUTROS PPG´s A SEREM VALIDADAS"]
[null,null,"Nome da disciplina","número de créditos"]
[null,null,null,null,null,null,null,null,null,null,null,null,{"$f":"D77","v":0},{"$f":"D77","v":0},{"$f":"D77","v":0},null,{"$f":"IF(N77=0,\"\",IF(N77>0,\"OK\"))","v":""}]
[null,null,null,null,null,null,null,null,null,null,null,null,{"$f":"D78","v":0},0,{"$f":"D78","v":0},null,""]
[null,null,null,null,null,null,null,null,null,null,null,null,0,0,0,null,""]
[null,null,null,null,null,null,null,null,null,null,null,null,0,0,0,null,""]
[null,null,null,null,null,null,null,null,null,null,null,{"$f":"M21+M22","v":0},0,0,0,null,""]
[null,null,null,null,null,null,null,null,null,null,null,{"$f":"M19+M24","v":0},0,0,0,null,""]
[null,null,null,null,null,null,null,null,null,"Total créditos:",null,{"$f":"O25+O70+N84","v":0},null,null,{"$f":"L83","v":0}]
[null,null,null,null,{"$f":"IF(F19+F20+F21+F22+F23+F24+F28+F29+F30+F33+F34+F35+F37+F38+F39+F40+F42+F44+F45+F47+F48+F50+F51+F52+F55+F56+F57+F60+F61+F62+F63+F64+F65+F66+F67+F68+F69+F73>0,\"1\",\"0\")","v":"0"},{"$f":"IF(G19+G20+G21+G22+G24+G28+G29+G30+G33+G34+G35+G37+G38+G39+G40+G42+G44+G45+G47+G48+G50+G51+G52+G55+G56+G57+G60+G61+G62+G63+G64+G65+G66+G67+G68+G69+G73>0,\"1\",\"0\")","v":"0"},{"$f":"IF(H19+H20+H21+H22+H24+H28+H29+H30+H33+H34+H35+H37+H38+H39+H40+H42+H44+H45+H47+H48+H50+H51+H52+H55+H56+H57+H60+H61+H62+H63+H64+H65+H66+H67+H68+H69+H73>0,\"1\",\"0\")","v":"0"},{"$f":"IF(I19+I20+I21+I22+I24+I28+I29+I30+I33+I34+I35+I37+I38+I39+I40+I42+I44+I45+I47+I48+I50+I51+I52+I55+I56+I57+I60+I61+I62+I63+I64+I65+I66+I67+I68+I69+I73>0,\"1\",\"0\")","v":"0"},null,null,null,null,null,{"$f":"SUM(N77:N82)","v":0}]
[]
[null,null,"QUADRO DE VERIFICAÇÕES","STATUS"]
[null,null,"Foi preenchido o nome?",{"$f":"IF(M8=0,\"OK\",\"não\")","v":"não"},null,null,null,null,null,null,null,{"$f":"J19*E19+J20*E20+J28*E28+J29*E29+J30*E30+J31*E31+J33*E33+J34*E34+J35*E35+J37*E37+J38*E38+J39*E39+J40*E40+J42*E42+J44*E44+J45*E45+J47*E47+J48*E48+J50*E50+J51*E51+J52*E52+J54*E54+J55*E55+J56*E56+J57*E57+J60*E60+J61*E61+J62*E62+J63*E63+J64*E64+J65*E65+J66*E66+J67*E67+J68*E68+J69*E69+D77+D78+D79+D80+D81+D82","v":0},{"$f":"N(D87=\"OK\")","v":0}]
[null,null,"Foi preenchido o número de matrícula?",{"$f":"IF(M9=0,\"OK\",\"não\")","v":"não"},null,null,null,null,null,null,null,null,0]
[null,null,"O Ano e semestre de ingresso foi preenchido?",{"$f":"IF(M10+M11=0,\"OK\",\"não\")","v":"não"},null,null,null,null,null,null,null,null,0]
[null,null,"O comitê de orientação está preenchido?",{"$f":"IF(M12+M13+M14=0,\"OK\",\"não\")","v":"não"},null,null,null,null,null,null,null,null,0]
[null,null,"Previu SEMEN1 e SEMEN2?",{"$f":"IF(L81=2,\"OK\",\"não\")","v":"não"},null,null,null,null,null,null,null,null,0]
[null,null,"Previu MCPENF e EDOMEF?",{"$f":"IF(L82=2,\"OK\",\"não\")","v":"não"},null,null,null,null,null,null,null,null,0]
[null,null,"Previu exame de proeficiência em língua estrangeira?",{"$f":"IF(M23=1,\"OK\",\"não\")","v":"não"},null,null,null,null,null,null,null,null,{"$f":"N(Q23=\"OK\")","v":0}]
[null,null,"Disciplinas aproveitadas/validadas somam até 12 créditos?",{"$f":"IF(L87<13,\"OK\",\"não\")","v":"OK"},null,null,null,null,null,null,null,null,{"$f":"N(Q24=\"OK\")","v":0}]
[null,null,"Previu no mínimo 24 créditos?",{"$f":"IF(L83>23,\"OK\",\"não\")","v":"não"},null,null,null,null,null,null,null,null,{"$f":"N(D95=\"OK\")","v":0}]
[null,null,"Há matrícula em todos os semestres?",{"$f":"IF(E84+F84+G84+H84=4,\"OK\",\"não\")","v":"não"},null,null,null,null,null,null,null,null,{"$f":"N(D96=\"OK\")","v":0}]
[null,null,null,null,null,null,null,null,null,null,null,null,{"$f":"SUM(M87:M96)","v":0}]
[null,null,"IMPRIMIR PLANO?",{"$f":"IF(M97=10,\"SIM\",\"NÃO\")","v":"NÃO"}]

{"sheet":"2 - Plano para impressão","index":2,"n_rows":279,"n_cols":10,"rows_kept":279,"cut":false,"hidden":false,"merged":[]}
[]
[]
[]
[]
[]
[]
[]
[]
[]
[]
[]
[]
[]
[]
[null,"Nome:",{"$f":"'1 - Preenchimento do plano'!C8","v":0},null,null,"Matrícula:",{"$f":"'1 - Preenchimento do plano'!C9","v":0}]
[]
[null,"Comitê de Orientação"]
[null,"Orientador:",{"$f":"'1 - Preenchimento do plano'!C12","v":0},null,null,"Ingresso:",{"$f":"'1 - Preenchimento do plano'!X10","v":0},"/",{"$f":"'1 - Preenchimento do plano'!X11","v":0}]
[null,"2º Membro:",{"$f":"'1 - Preenchimento do plano'!C13","v":0}]
[null,"3º Membro:",{"$f":"'1 - Preenchimento do plano'!C14","v":0}]
[]
[null,"SEMESTRE","DISCIPLINA",null,null,"CÓDIGO","CH",null,"CRÉDITOS"]
[null,"DISCIPLINAS A SEREM CURSADAS DURANTE O CURSO",null,null,null,null,null,null,null,1]
[{"$f":"'1 - Preenchimento do plano'!F19","v":0},1,{"$f":"'1 - Preenchimento do plano'!C19","v":"Metodologia Científica e da Pesquisa"},null,null,{"$f":"'1 - Preenchimento do plano'!B19","v":"MCPENF"},{"$f":"'1 - Preenchimento do plano'!D19","v":30},null,{"$f":"'1 - Preenchimento do plano'!O19","v":0},{"$f":"A24*B24","v":0}]
[{"$f":"'1 - Preenchimento do plano'!F20","v":0},1,{"$f":"'1 - Preenchimento do plano'!C20","v":"Métodos estatístico-experimentais aplicados a Engenharia Florestal"},null,null,{"$f":"'1 - Preenchimento do plano'!B20","v":"MEXENF"},{"$f":"'1 - Preenchimento do plano'!D20","v":60},null,{"$f":"'1 - Preenchimento do plano'!O20","v":0},{"$f":"A25*B25","v":0}]
[{"$f":"'1 - Preenchimento do plano'!F21","v":0},1,{"$f":"'1 - Preenchimento do plano'!C21","v":"Seminarios - Presença"},null,null,{"$f":"'1 - Preenchimento do plano'!B21","v":"SEMEN1"},{"$f":"'1 - Preenchimento do plano'!D21","v":15},null,{"$f":"'1 - Preenchimento do plano'!O21","v":0},0]
[{"$f":"'1 - Preenchimento do plano'!F22","v":0},1,{"$f":"'1 - Preenchimento do plano'!C22","v":"Seminários - Apresentador"},null,null,{"$f":"'1 - Preenchimento do plano'!B22","v":"SEMEN2"},{"$f":"'1 - Preenchimento do plano'!D22","v":15},null,{"$f":"'1 - Preenchimento do plano'!O22","v":0},0]
[{"$f":"'1 - Preenchimento do plano'!F23","v":0},1,{"$f":"'1 - Preenchimento do plano'!C23","v":"Exame de proficiência em Língua Estrangeira"},null,null,{"$f":"'1 - Preenchimento do plano'!B23","v":"LING ESTRA"},{"$f":"'1 - Preenchimento do plano'!D23","v":0},null,{"$f":"'1 - Preenchimento do plano'!O23","v":0},0]
[{"$f":"'1 - Preenchimento do plano'!F24","v":0},1,{"$f":"'1 - Preenchimento do plano'!C24","v":"Estágio em docência"},null,null,{"$f":"'1 - Preenchimento do plano'!B24","v":"EDOMEF"},{"$f":"'1 - Preenchimento do plano'!D24","v":30},null,{"$f":"'1 - Preenchimento do plano'!O24","v":0},0]
[{"$f":"'1 - Preenchimento do plano'!F28","v":0},1,{"$f":"'1 - Preenchimento do plano'!C28","v":"A Madeira na Construção"},null,null,{"$f":"'1 - Preenchimento do plano'!B28","v":"MADCON"},{"$f":"'1 - Preenchimento do plano'!D28","v":30},null,{"$f":"'1 - Preenchimento do plano'!O28","v":0},0]
[{"$f":"'1 - Preenchimento do plano'!F29","v":0},1,{"$f":"'1 - Preenchimento do plano'!C29","v":"Análise de Regressão Aplicada à Engenharia Florestal"},null,null,{"$f":"'1 - Preenchimento do plano'!B29","v":"ARAENF"},{"$f":"'1 - Preenchimento do plano'!D29","v":60},null,{"$f":"'1 - Preenchimento do plano'!O29","v":0},0]
[{"$f":"'1 - Preenchimento do plano'!F30","v":0},1,{"$f":"'1 - Preenchimento do plano'!C30","v":"Avaliação de Impactos Ambientais"},null,null,{"$f":"'1 - Preenchimento do plano'!B30","v":"AVIMPA"},{"$f":"'1 - Preenchimento do plano'!D30","v":45},null,{"$f":"'1 - Preenchimento do plano'!O30","v":0},0]
[{"$f":"'1 - Preenchimento do plano'!F31","v":0},1,{"$f":"'1 - Preenchimento do plano'!C31","v":"Celulose e Papel"},null,null,{"$f":"'1 - Preenchimento do plano'!B31","v":"CELPAP"},{"$f":"'1 - Preenchimento do plano'!D31","v":30},null,{"$f":"'1 - Preenchimento do plano'!O31","v":0},{"$f":"A33*B33","v":0}]
[{"$f":"'1 - Preenchimento do plano'!F32","v":0},1,{"$f":"'1 - Preenchimento do plano'!C32","v":"Colheita Florestal"},null,null,{"$f":"'1 - Preenchimento do plano'!B32","v":"COFLOR"},{"$f":"'1 - Preenchimento do plano'!D32","v":60},null,{"$f":"'1 - Preenchimento do plano'!O32","v":0},{"$f":"A34*B34","v":0}]
[{"$f":"'1 - Preenchimento do plano'!F33","v":0},1,{"$f":"'1 - Preenchimento do plano'!C33","v":"Conservação e Uso de Espécies Florestais"},null,null,{"$f":"'1 - Preenchimento do plano'!B33","v":"COUESF"},{"$f":"'1 - Preenchimento do plano'!D33","v":60},null,{"$f":"'1 - Preenchimento do plano'!O33","v":0},0]
[{"$f":"'1 - Preenchimento do plano'!F34","v":0},1,{"$f":"'1 - Preenchimento do plano'!C34","v":"Dendrologia"},null,null,{"$f":"'1 - Preenchimento do plano'!B34","v":"DENDRO"},{"$f":"'1 - Preenchimento do plano'!D34","v":60},null,{"$f":"'1 - Preenchimento do plano'!O34","v":0},0]
[{"$f":"'1 - Preenchimento do plano'!F35","v":0},1,{"$f":"'1 - Preenchimento do plano'!C35","v":"Descrição e Análise da Vegetação"},null,null,{"$f":"'1 - Preenchimento do plano'!B35","v":"DEANVE"},{"$f":"'1 - Preenchimento do plano'!D35","v":60},null,{"$f":"'1 - Preenchimento do plano'!O35","v":0},0]
[{"$f":"'1 - Preenchimento do plano'!F36","v":0},1,{"$f":"'1 - Preenchimento do plano'!C36","v":"Economia Florestal"},null,null,{"$f":"'1 - Preenchimento do plano'!B36","v":"ECOFLO"},{"$f":"'1 - Preenchimento do plano'!D36","v":60},null,{"$f":"'1 - Preenchimento do plano'!O36","v":0},{"$f":"A38*B38","v":0}]
[{"$f":"'1 - Preenchimento do plano'!F37","v":0},1,{"$f":"'1 - Preenchimento do plano'!C37","v":"Ecofisiologia Vegetal"},null,null,{"$f":"'1 - Preenchimento do plano'!B37","v":"ECOVEG"},{"$f":"'1 - Preenchimento do plano'!D37","v":60},null,{"$f":"'1 - Preenchimento do plano'!O37","v":0},0]
[{"$f":"'1 - Preenchimento do plano'!F38","v":0},1,{"$f":"'1 - Preenchimento do plano'!C38","v":"Ecologia de Florestas Neo-Subtropicais"},null,null,{"$f":"'1 - Preenchimento do plano'!B38","v":"ECFONT"},{"$f":"'1 - Preenchimento do plano'!D38","v":60},null,{"$f":"'1 - Preenchimento do plano'!O38","v":0},0]
[{"$f":"'1 - Preenchimento do plano'!F39","v":0},1,{"$f":"'1 - Preenchimento do plano'!C39","v":"Energia e Desenvolvimento"},null,null,{"$f":"'1 - Preenchimento do plano'!B39","v":"ENEDES"},{"$f":"'1 - Preenchimento do plano'!D39","v":45},null,{"$f":"'1 - Preenchimento do plano'!O39","v":0},{"$f":"A41*B41","v":0}]
[{"$f":"'1 - Preenchimento do plano'!F40","v":0},1,{"$f":"'1 - Preenchimento do plano'!C40","v":"Engenharia do Ambiente na Indústria Florestal"},null,null,{"$f":"'1 - Preenchimento do plano'!B40","v":"ENAMIF"},{"$f":"'1 - Preenchimento do plano'!D40","v":60},null,{"$f":"'1 - Preenchimento do plano'!O40","v":0},0]
[{"$f":"'1 - Preenchimento do plano'!F41","v":0},1,{"$f":"'1 - Preenchimento do plano'!C41","v":"Fauna Edáfica em Ecossistemas Florestais"},null,null,{"$f":"'1 - Preenchimento do plano'!B41","v":"FAEDEF"},{"$f":"'1 - Preenchimento do plano'!D41","v":45},null,{"$f":"'1 - Preenchimento do plano'!O41","v":0},{"$f":"A43*B43","v":0}]
[{"$f":"'1 - Preenchimento do plano'!F42","v":0},1,{"$f":"'1 - Preenchimento do plano'!C42","v":"Fitogeografia"},null,null,{"$f":"'1 - Preenchimento do plano'!B42","v":"FITGEO"},{"$f":"'1 - Preenchimento do plano'!D42","v":60},null,{"$f":"'1 - Preenchimento do plano'!O42","v":0},0]
[{"$f":"'1 - Preenchimento do plano'!F43","v":0},1,{"$f":"'1 - Preenchimento do plano'!C43","v":"Geoestatística Aplicada a Ciência Florestal"},null,null,{"$f":"'1 - Preenchimento do plano'!B43","v":"GEOACF"},{"$f":"'1 - Preenchimento do plano'!D43","v":60},null,{"$f":"'1 - Preenchimento do plano'!O43","v":0}]
[{"$f":"'1 - Preenchimento do plano'!F44","v":0},1,{"$f":"'1 - Preenchimento do plano'!C44","v":"Genética de Populações de Espécies Florestais"},null,null,{"$f":"'1 - Preenchimento do plano'!B44","v":"GEPOEF"},{"$f":"'1 - Preenchimento do plano'!D44","v":60},null,{"$f":"'1 - Preenchimento do plano'!O44","v":0},0]
[{"$f":"'1 - Preenchimento do plano'!F45","v":0},1,{"$f":"'1 - Preenchimento do plano'!C45","v":"Gestão de Recursos Naturais Renováveis"},null,null,{"$f":"'1 - Preenchimento do plano'!B45","v":"GERENA"},{"$f":"'1 - Preenchimento do plano'!D45","v":30},null,{"$f":"'1 - Preenchimento do plano'!O45","v":0},{"$f":"A47*B47","v":0}]
[{"$f":"'1 - Preenchimento do plano'!F46","v":0},1,{"$f":"'1 - Preenchimento do plano'!C46","v":"Gestão Florestal"},null,null,{"$f":"'1 - Preenchimento do plano'!B46","v":"GESFLO"},{"$f":"'1 - Preenchimento do plano'!D46","v":45},null,{"$f":"'1 - Preenchimento do plano'!O46","v":0},{"$f":"A48*B48","v":0}]
[{"$f":"'1 - Preenchimento do plano'!F47","v":0},1,{"$f":"'1 - Preenchimento do plano'!C47","v":"Hidrologia e Manejo de Bacias"},null,null,{"$f":"'1 - Preenchimento do plano'!B47","v":"HIMABA"},{"$f":"'1 - Preenchimento do plano'!D47","v":60},null,{"$f":"'1 - Preenchimento do plano'!O47","v":0},0]
[{"$f":"'1 - Preenchimento do plano'!F48","v":0},1,{"$f":"'1 - Preenchimento do plano'!C48","v":"Implantação e Condução de Povoamentos Florestais"},null,null,{"$f":"'1 - Preenchimento do plano'!B48","v":"IMCPOF"},{"$f":"'1 - Preenchimento do plano'!D48","v":60},null,{"$f":"'1 - Preenchimento do plano'!O48","v":0},0]
[{"$f":"'1 - Preenchimento do plano'!F49","v":0},1,{"$f":"'1 - Preenchimento do plano'!C49","v":"Melhoramento Genético e Biotecnologia Florestal"},null,null,{"$f":"'1 - Preenchimento do plano'!B49","v":"MEGEBF"},{"$f":"'1 - Preenchimento do plano'!D49","v":60},null,{"$f":"'1 - Preenchimento do plano'!O49","v":0},{"$f":"A51*B51","v":0}]
[{"$f":"'1 - Preenchimento do plano'!F50","v":0},1,{"$f":"'1 - Preenchimento do plano'!C50","v":"Manejo e Conservação da Fauna Silvestre"},null,null,{"$f":"'1 - Preenchimento do plano'!B50","v":"MACOFS"},{"$f":"'1 - Preenchimento do plano'!D50","v":60},null,{"$f":"'1 - Preenchimento do plano'!O50","v":0},0]
[{"$f":"'1 - Preenchimento do plano'!F51","v":0},1,{"$f":"'1 - Preenchimento do plano'!C51","v":"Mecânica dos Sólidos Aplicada à Engenharia Florestal"},null,null,{"$f":"'1 - Preenchimento do plano'!B51","v":"MESAEF"},{"$f":"'1 - Preenchimento do plano'!D51","v":60},null,{"$f":"'1 - Preenchimento do plano'!O51","v":0},0]
[{"$f":"'1 - Preenchimento do plano'!F52","v":0},1,{"$f":"'1 - Preenchimento do plano'!C52","v":"Modelagem do Crescimento e Produção Florestal"},null,null,{"$f":"'1 - Preenchimento do plano'!B52","v":"MOCPOF"},{"$f":"'1 - Preenchimento do plano'!D52","v":60},null,{"$f":"'1 - Preenchimento do plano'!O52","v":0},{"$f":"A54*B54","v":0}]
[{"$f":"'1 - Preenchimento do plano'!F53","v":0},1,{"$f":"'1 - Preenchimento do plano'!C53","v":"Operações Mecanizadas Silviculturais"},null,null,{"$f":"'1 - Preenchimento do plano'!B53","v":"OMESIL"},{"$f":"'1 - Preenchimento do plano'!D53","v":60},null,{"$f":"'1 - Preenchimento do plano'!O53","v":0},{"$f":"A55*B55","v":0}]
[{"$f":"'1 - Preenchimento do plano'!F54","v":0},1,{"$f":"'1 - Preenchimento do plano'!C54","v":"Painéis Reconstituídos de Madeira"},null,null,{"$f":"'1 - Preenchimento do plano'!B54","v":"PAREMA"},{"$f":"'1 - Preenchimento do plano'!D54","v":30},null,{"$f":"'1 - Preenchimento do plano'!O54","v":0},{"$f":"A56*B56","v":0}]
[{"$f":"'1 - Preenchimento do plano'!F55","v":0},1,{"$f":"'1 - Preenchimento do plano'!C55","v":"Produção e Tecnologia de Sementes Florestais"},null,null,{"$f":"'1 - Preenchimento do plano'!B55","v":"POTSEF"},{"$f":"'1 - Preenchimento do plano'!D55","v":45},null,{"$f":"'1 - Preenchimento do plano'!O55","v":0},0]
[{"$f":"'1 - Preenchimento do plano'!F56","v":0},1,{"$f":"'1 - Preenchimento do plano'!C56","v":"Propagação de Espécies Florestais"},null,null,{"$f":"'1 - Preenchimento do plano'!B56","v":"PROESF"},{"$f":"'1 - Preenchimento do plano'!D56","v":45},null,{"$f":"'1 - Preenchimento do plano'!O56","v":0},0]
[{"$f":"'1 - Preenchimento do plano'!F57","v":0},1,{"$f":"'1 - Preenchimento do plano'!C57","v":"Qualidade da Madeira e Produtos Florestais 1"},null,null,{"$f":"'1 - Preenchimento do plano'!B57","v":"QMAPF1"},{"$f":"'1 - Preenchimento do plano'!D57","v":45},null,{"$f":"'1 - Preenchimento do plano'!O57","v":0},0]
[{"$f":"'1 - Preenchimento do plano'!F58","v":0},1,{"$f":"'1 - Preenchimento do plano'!C58","v":"Qualidade da Madeira e Produtos Florestais 2"},null,null,{"$f":"'1 - Preenchimento do plano'!B58","v":"QMAPF2"},{"$f":"'1 - Preenchimento do plano'!D58","v":45},null,{"$f":"'1 - Preenchimento do plano'!O58","v":0},{"$f":"A60*B60","v":0}]
[{"$f":"'1 - Preenchimento do plano'!F59","v":0},1,{"$f":"'1 - Preenchimento do plano'!C59","v":"Silvicultura Aplicada à Espécies de Interesse Comercial"},null,null,{"$f":"'1 - Preenchimento do plano'!B59","v":"SAESIC"},{"$f":"'1 - Preenchimento do plano'!D59","v":45},null,{"$f":"'1 - Preenchimento do plano'!O59","v":0}]
[{"$f":"'1 - Preenchimento do plano'!F60","v":0},1,{"$f":"'1 - Preenchimento do plano'!C60","v":"Sensoriamento Remoto Aplicado à Engenharia Florestal"},null,null,{"$f":"'1 - Preenchimento do plano'!B60","v":"SERAEF"},{"$f":"'1 - Preenchimento do plano'!D60","v":60},null,{"$f":"'1 - Preenchimento do plano'!O60","v":0},0]
[{"$f":"'1 - Preenchimento do plano'!F61","v":0},1,{"$f":"'1 - Preenchimento do plano'!C61","v":"Sistema de Informação Geográfica"},null,null,{"$f":"'1 - Preenchimento do plano'!B61","v":"SINGEO"},{"$f":"'1 - Preenchimento do plano'!D61","v":60},null,{"$f":"'1 - Preenchimento do plano'!O61","v":0},0]
[{"$f":"'1 - Preenchimento do plano'!F62","v":0},1,{"$f":"'1 - Preenchimento do plano'!C62","v":"Sociologia Ambiental e Uso dos Recursos Naturais"},null,null,{"$f":"'1 - Preenchimento do plano'!B62","v":"SAMURN"},{"$f":"'1 - Preenchimento do plano'!D62","v":60},null,{"$f":"'1 - Preenchimento do plano'!O62","v":0},0]
[{"$f":"'1 - Preenchimento do plano'!F63","v":0},1,{"$f":"'1 - Preenchimento do plano'!C63","v":"Solos e Produção Florestal"},null,null,{"$f":"'1 - Preenchimento do plano'!B63","v":"SOPROF"},{"$f":"'1 - Preenchimento do plano'!D63","v":60},null,{"$f":"'1 - Preenchimento do plano'!O63","v":0},0]
[{"$f":"'1 - Preenchimento do plano'!F64","v":0},1,{"$f":"'1 - Preenchimento do plano'!C64","v":"Transformação Mecânica da Madeira "},null,null,{"$f":"'1 - Preenchimento do plano'!B64","v":"TRAMEM"},{"$f":"'1 - Preenchimento do plano'!D64","v":30},null,{"$f":"'1 - Preenchimento do plano'!O64","v":0},0]
[{"$f":"'1 - Preenchimento do plano'!F65","v":0},1,{"$f":"'1 - Preenchimento do plano'!C65","v":"Tópicos Especiais em Caracterização da Madeira e Processos Ind."},null,null,{"$f":"'1 - Preenchimento do plano'!B65","v":"TECMPI"},{"$f":"'1 - Preenchimento do plano'!D65","v":45},null,{"$f":"'1 - Preenchimento do plano'!O65","v":0},0]
[{"$f":"'1 - Preenchimento do plano'!F66","v":0},1,{"$f":"'1 - Preenchimento do plano'!C66","v":"Tópicos Especiais em Ciência do Solo Aplicada à Produção Florestal"},null,null,{"$f":"'1 - Preenchimento do plano'!B66","v":"TECSAP"},{"$f":"'1 - Preenchimento do plano'!D66","v":30},null,{"$f":"'1 - Preenchimento do plano'!O66","v":0},0]
[{"$f":"'1 - Preenchimento do plano'!F67","v":0},1,{"$f":"'1 - Preenchimento do plano'!C67","v":"Tópicos Especiais em Crescimento e Produção de Florestas Nativas e Plantadas"},null,null,{"$f":"'1 - Preenchimento do plano'!B67","v":"TECPFN"},{"$f":"'1 - Preenchimento do plano'!D67","v":45},null,{"$f":"'1 - Preenchimento do plano'!O67","v":0},0]
[{"$f":"'1 - Preenchimento do plano'!F68","v":0},1,{"$f":"'1 - Preenchimento do plano'!C68","v":"Tópicos Especiais em Ecolog. de Sp. Ftais e Ecossist. Assoc."},null,null,{"$f":"'1 - Preenchimento do plano'!B68","v":"TESEFE"},{"$f":"'1 - Preenchimento do plano'!D68","v":45},null,{"$f":"'1 - Preenchimento do plano'!O68","v":0},{"$f":"A70*B70","v":0}]
[{"$f":"'1 - Preenchimento do plano'!F69","v":0},1,{"$f":"'1 - Preenchimento do plano'!C69","v":"Tópicos Especiais em Silvicultura"},null,null,{"$f":"'1 - Preenchimento do plano'!B69","v":"TESSIL"},{"$f":"'1 - Preenchimento do plano'!D69","v":45},null,{"$f":"'1 - Preenchimento do plano'!O69","v":0},0]
[{"$f":"'1 - Preenchimento do plano'!F73","v":0},1,{"$f":"'1 - Preenchimento do plano'!C73","v":"Elaboração de dissertação"},null,null,{"$f":"'1 - Preenchimento do plano'!B73","v":"DISMEF"},{"$f":"'1 - Preenchimento do plano'!D73","v":0},null,{"$f":"'1 - Preenchimento do plano'!O73","v":0},0]
[{"$f":"'1 - Preenchimento do plano'!G19","v":0},2,{"$f":"C24","v":"Metodologia Científica e da Pesquisa"},null,null,{"$f":"F24","v":"MCPENF"},30,null,{"$f":"I24","v":0},0]
[{"$f":"'1 - Preenchimento do plano'!G20","v":0},2,"Métodos estatístico-experimentais aplicados a Engenharia Florestal",null,null,"MEXENF",60,null,0,{"$f":"A74*B74","v":0}]
[{"$f":"'1 - Preenchimento do plano'!G21","v":0},2,"Seminarios - Presença",null,null,"SEMEN1",15,null,0,0]
[{"$f":"'1 - Preenchimento do plano'!G22","v":0},2,"Seminários - Apresentador",null,null,"SEMEN2",15,null,0,0]
[{"$f":"'1 - Preenchimento do plano'!G23","v":0},2,"Exame de proficiência em Língua Estrangeira",null,null,"LING ESTRA",0,null,0,0]
[{"$f":"'1 - Preenchimento do plano'!G24","v":0},2,"Estágio em docência",null,null,"EDOMEF",30,null,0,0]
[{"$f":"'1 - Preenchimento do plano'!G28","v":0},2,"A Madeira na Construção",null,null,"MADCON",30,null,0,0]
[{"$f":"'1 - Preenchimento do plano'!G29","v":0},2,"Análise de Regressão Aplicada à Engenharia Florestal",null,null,"ARAENF",60,null,0,0]
[{"$f":"'1 - Preenchimento do plano'!G30","v":0},2,"Avaliação de Impactos Ambientais",null,null,"AVIMPA",45,null,0,0]
[{"$f":"'1 - Preenchimento do plano'!G31","v":0},2,"Celulose e Papel",null,null,"CELPAP",30,null,0,{"$f":"A82*B82","v":0}]
[{"$f":"'1 - Preenchimento do plano'!G32","v":0},2,"Colheita Florestal",null,null,"COFLOR",60,null,0,{"$f":"A83*B83","v":0}]
[{"$f":"'1 - Preenchimento do plano'!G33","v":0},2,"Conservação e Uso de Espécies Florestais",null,null,"COUESF",60,null,0,0]
[{"$f":"'1 - Preenchimento do plano'!G34","v":0},2,"Dendrologia",null,null,"DENDRO",60,null,0,0]
[{"$f":"'1 - Preenchimento do plano'!G35","v":0},2,"Descrição e Análise da Vegetação",null,null,"DEANVE",60,null,0,0]
[{"$f":"'1 - Preenchimento do plano'!G36","v":0},2,"Economia Florestal",null,null,"ECOFLO",60,null,0,{"$f":"A87*B87","v":0}]
[{"$f":"'1 - Preenchimento do plano'!G37","v":0},2,"Ecofisiologia Vegetal",null,null,"ECOVEG",60,null,0,0]
[{"$f":"'1 - Preenchimento do plano'!G38","v":0},2,"Ecologia de Florestas Neo-Subtropicais",null,null,"ECFONT",60,null,0,0]
[{"$f":"'1 - Preenchimento do plano'!G39","v":0},2,"Energia e Desenvolvimento",null,null,"ENEDES",45,null,0,{"$f":"A90*B90","v":0}]
[{"$f":"'1 - Preenchimento do plano'!G40","v":0},2,"Engenharia do Ambiente na Indústria Florestal",null,null,"ENAMIF",60,null,0,0]
[{"$f":"'1 - Preenchimento do plano'!G41","v":0},2,"Fauna Edáfica em Ecossistemas Florestais",null,null,"FAEDEF",45,null,0,{"$f":"A92*B92","v":0}]
[{"$f":"'1 - Preenchimento do plano'!G42","v":0},2,"Fitogeografia",null,null,"FITGEO",60,null,0,0]
[{"$f":"'1 - Preenchimento do plano'!G43","v":0},2,"Geoestatística Aplicada a Ciência Florestal",null,null,"GEOACF",60,null,0,{"$f":"A94*B94","v":0}]
[{"$f":"'1 - Preenchimento do plano'!G44","v":0},2,"Genética de Populações de Espécies Florestais",null,null,"GEPOEF",60,null,0,0]
[{"$f":"'1 - Preenchimento do plano'!G45","v":0},2,"Gestão de Recursos Naturais Renováveis",null,null,{"$f":"F47","v":"GERENA"},30,null,0,{"$f":"A96*B96","v":0}]
[{"$f":"'1 - Preenchimento do plano'!G46","v":0},2,"Gestão Florestal",null,null,"GESFLO",45,null,0,{"$f":"A97*B97","v":0}]
[{"$f":"'1 - Preenchimento do plano'!G47","v":0},2,"Hidrologia e Manejo de Bacias",null,null,{"$f":"F49","v":"HIMABA"},60,null,0,0]
[{"$f":"'1 - Preenchimento do plano'!G48","v":0},2,"Implantação e Condução de Povoamentos Florestais",null,null,{"$f":"F50","v":"IMCPOF"},{"$f":"G50","v":60},null,0,0]
[{"$f":"'1 - Preenchimento do plano'!G49","v":0},2,"Melhoramento Genético e Biotecnologia Florestal",null,null,{"$f":"F51","v":"MEGEBF"},{"$f":"G51","v":60},null,0,{"$f":"A100*B100","v":0}]
[{"$f":"'1 - Preenchimento do plano'!G50","v":0},2,"Manejo e Conservação da Fauna Silvestre",null,null,{"$f":"F52","v":"MACOFS"},60,null,0,0]
[{"$f":"'1 - Preenchimento do plano'!G51","v":0},2,"Mecânica dos Sólidos Aplicada à Engenharia Florestal",null,null,{"$f":"F53","v":"MESAEF"},60,null,0,0]
[{"$f":"'1 - Preenchimento do plano'!G52","v":0},2,"Modelagem do Crescimento e Produção Florestal",null,null,"MOCPOF",60,null,0,{"$f":"A103*B103","v":0}]
[{"$f":"'1 - Preenchimento do plano'!G53","v":0},2,"Operações Mecanizadas Silviculturais",null,null,"OMESIL",60,null,0,{"$f":"A104*B104","v":0}]
[{"$f":"'1 - Preenchimento do plano'!G54","v":0},2,"Painéis Reconstituídos de Madeira",null,null,"PAREMA",30,null,0,{"$f":"A105*B105","v":0}]
[{"$f":"'1 - Preenchimento do plano'!G55","v":0},2,"Produção e Tecnologia de Sementes Florestais",null,null,{"$f":"F57","v":"POTSEF"},45,null,0,0]
[{"$f":"'1 - Preenchimento do plano'!G56","v":0},2,"Propagação de Espécies Florestais",null,null,{"$f":"F58","v":"PROESF"},45,null,0,0]
[{"$f":"'1 - Preenchimento do plano'!G57","v":0},2,"Qualidade da Madeira e Produtos Florestais 1",null,null,{"$f":"F59","v":"QMAPF1"},45,null,0,0]
[{"$f":"'1 - Preenchimento do plano'!G58","v":0},2,"Qualidade da Madeira e Produtos Florestais 2",null,null,"QMAPF2",45,null,0,{"$f":"A109*B109","v":0}]
[{"$f":"'1 - Preenchimento do plano'!G59","v":0},2,"Silvicultura Aplicada à Espécies de Interesse Comercial",null,null,"SAESIC",45,null,0]
[{"$f":"'1 - Preenchimento do plano'!G60","v":0},2,{"$f":"C62","v":"Sensoriamento Remoto Aplicado à Engenharia Florestal"},null,null,{"$f":"F62","v":"SERAEF"},60,null,{"$f":"I62","v":0},0]
[{"$f":"'1 - Preenchimento do plano'!G61","v":0},2,{"$f":"C63","v":"Sistema de Informação Geográfica"},null,null,{"$f":"F63","v":"SINGEO"},60,null,{"$f":"I63","v":0},0]
[{"$f":"'1 - Preenchimento do plano'!G62","v":0},2,"Sociologia Ambiental e Uso dos Recursos Naturais",null,null,{"$f":"F64","v":"SAMURN"},60,null,0,0]
[{"$f":"'1 - Preenchimento do plano'!G63","v":0},2,"Solos e Produção Florestal",null,null,{"$f":"F65","v":"SOPROF"},60,null,0,0]
[{"$f":"'1 - Preenchimento do plano'!G64","v":0},2,"Transformação Mecânica da Madeira ",null,null,{"$f":"F66","v":"TRAMEM"},30,null,0,0]
[{"$f":"'1 - Preenchimento do plano'!G65","v":0},2,"Tópicos Especiais em Caracterização da Madeira e Processos Ind.",null,null,{"$f":"F67","v":"TECMPI"},45,null,0,0]
[{"$f":"'1 - Preenchimento do plano'!G66","v":0},2,"Tópicos Especiais em Ciência do Solo Aplicada à Produção Florestal",null,null,{"$f":"F68","v":"TECSAP"},30,null,0,0]
[{"$f":"'1 - Preenchimento do plano'!G67","v":0},2,"Tópicos Especiais em Crescimento e Produção de Florestas Nativas e Plantadas",null,null,{"$f":"F69","v":"TECPFN"},45,null,0,0]
[{"$f":"'1 - Preenchimento do plano'!G68","v":0},2,"Tópicos Especiais em Ecolog. de Sp. Ftais e Ecossist. Assoc.",null,null,{"$f":"F70","v":"TESEFE"},45,null,0,0]
[{"$f":"'1 - Preenchimento do plano'!G69","v":0},2,"Tópicos Especiais em Silvicultura",null,null,{"$f":"F71","v":"TESSIL"},45,null,0,0]
[{"$f":"'1 - Preenchimento do plano'!G73","v":0},2,"Elaboração de dissertação",null,null,{"$f":"F72","v":"DISMEF"},{"$f":"G72","v":0},null,0,0]
[{"$f":"'1 - Preenchimento do plano'!H19","v":0},3,"Metodologia Científica e da Pesquisa",null,null,{"$f":"F24","v":"MCPENF"},{"$f":"G73","v":30},null,0,0]
[{"$f":"'1 - Preenchimento do plano'!H20","v":0},3,"Métodos estatístico-experimentais aplicados a Engenharia Florestal",null,null,"MEXENF",60,null,0,{"$f":"A123*B123","v":0}]
[{"$f":"'1 - Preenchimento do plano'!H21","v":0},3,"Seminarios - Presença",null,null,"SEMEN1",15,null,0,0]
[{"$f":"'1 - Preenchimento do plano'!H22","v":0},3,"Seminários - Apresentador",null,null,"SEMEN2",15,null,0,{"$f":"A125*B125","v":0}]
[{"$f":"'1 - Preenchimento do plano'!H23","v":0},3,"Exame de proficiência em Língua Estrangeira",null,null,"LING ESTRA",0,null,0,0]
[{"$f":"'1 - Preenchimento do plano'!H24","v":0},3,"Estágio em docência",null,null,"EDOMEF",30,null,0,0]
[{"$f":"'1 - Preenchimento do plano'!H28","v":0},3,"A Madeira na Construção",null,null,"MADCON",30,null,0,0]
[{"$f":"'1 - Preenchimento do plano'!H29","v":0},3,"Análise de Regressão Aplicada à Engenharia Florestal",null,null,"ARAENF",60,null,0,0]
[{"$f":"'1 - Preenchimento do plano'!H30","v":0},3,"Avaliação de Impactos Ambientais",null,null,"AVIMPA",45,null,0,0]
[{"$f":"'1 - Preenchimento do plano'!H31","v":0},3,"Celulose e Papel",null,null,"CELPAP",30,null,0,{"$f":"A131*B131","v":0}]
[{"$f":"'1 - Preenchimento do plano'!H32","v":0},3,"Colheita Florestal",null,null,"COFLOR",60,null,0,{"$f":"A132*B132","v":0}]
[{"$f":"'1 - Preenchimento do plano'!H33","v":0},3,"Conservação e Uso de Espécies Florestais",null,null,"COUESF",60,null,0,0]
[{"$f":"'1 - Preenchimento do plano'!H34","v":0},3,"Dendrologia",null,null,"DENDRO",60,null,0,0]
[{"$f":"'1 - Preenchimento do plano'!H35","v":0},3,"Descrição e Análise da Vegetação",null,null,"DEANVE",60,null,0,0]
[{"$f":"'1 - Preenchimento do plano'!H36","v":0},3,"Economia Florestal",null,null,"ECOFLO",60,null,0,{"$f":"A136*B136","v":0}]
[{"$f":"'1 - Preenchimento do plano'!H37","v":0},3,"Ecofisiologia Vegetal",null,null,"ECOVEG",60,null,0,0]
[{"$f":"'1 - Preenchimento do plano'!H38","v":0},3,"Ecologia de Florestas Neo-Subtropicais",null,null,"ECFONT",60,null,0,0]
[{"$f":"'1 - Preenchimento do plano'!H39","v":0},3,"Energia e Desenvolvimento",null,null,"ENEDES",45,null,0,{"$f":"A139*B139","v":0}]
[{"$f":"'1 - Preenchimento do plano'!H40","v":0},3,"Engenharia do Ambiente na Indústria Florestal",null,null,"ENAMIF",60,null,0,0]
[{"$f":"'1 - Preenchimento do plano'!H41","v":0},3,"Fauna Edáfica em Ecossistemas Florestais",null,null,"FAEDEF",45,null,0,{"$f":"A141*B141","v":0}]
[{"$f":"'1 - Preenchimento do plano'!H42","v":0},3,"Fitogeografia",null,null,"FITGEO",60,null,0,0]
[{"$f":"'1 - Preenchimento do plano'!H43","v":0},3,"Geoestatística Aplicada a Ciência Florestal",null,null,"GEOACF",60,null,0,{"$f":"A143*B143","v":0}]
[{"$f":"'1 - Preenchimento do plano'!H44","v":0},3,{"$f":"C95","v":"Genética de Populações de Espécies Florestais"},null,null,"GEPOEF",60,null,{"$f":"I95","v":0},0]
[{"$f":"'1 - Preenchimento do plano'!H45","v":0},3,"Gestão de Recursos Naturais Renováveis",null,null,"GERENA",30,null,0,{"$f":"A145*B145","v":0}]
[{"$f":"'1 - Preenchimento do plano'!H46","v":0},3,"Gestão Florestal",null,null,"GESFLO",45,null,0,{"$f":"A146*B146","v":0}]
[{"$f":"'1 - Preenchimento do plano'!H47","v":0},3,"Hidrologia e Manejo de Bacias",null,null,"HIMABA",60,null,0,0]
[{"$f":"'1 - Preenchimento do plano'!H48","v":0},3,"Implantação e Condução de Povoamentos Florestais",null,null,"IMCPOF",60,null,0,0]
[{"$f":"'1 - Preenchimento do plano'!H49","v":0},3,"Melhoramento Genético e Biotecnologia Florestal",null,null,"MEGEBF",60,null,0,{"$f":"A149*B149","v":0}]
[{"$f":"'1 - Preenchimento do plano'!H50","v":0},3,"Manejo e Conservação da Fauna Silvestre",null,null,"MACOFS",60,null,0,0]
[{"$f":"'1 - Preenchimento do plano'!H51","v":0},3,"Mecânica dos Sólidos Aplicada à Engenharia Florestal",null,null,"MESAEF",60,null,0,0]
[{"$f":"'1 - Preenchimento do plano'!H52","v":0},3,"Modelagem do Crescimento e Produção Florestal",null,null,"MOCPOF",60,null,0,{"$f":"A152*B152","v":0}]
[{"$f":"'1 - Preenchimento do plano'!H53","v":0},3,"Operações Mecanizadas Silviculturais",null,null,"OMESIL",60,null,0,{"$f":"A153*B153","v":0}]
[{"$f":"'1 - Preenchimento do plano'!H54","v":0},3,"Painéis Reconstituídos de Madeira",null,null,{"$f":"F56","v":"PAREMA"},{"$f":"G105","v":30},null,0,{"$f":"A154*B154","v":0}]
[{"$f":"'1 - Preenchimento do plano'!H55","v":0},3,"Produção e Tecnologia de Sementes Florestais",null,null,"POTSEF",45,null,0,0]
[{"$f":"'1 - Preenchimento do plano'!H56","v":0},3,"Propagação de Espécies Florestais",null,null,"PROESF",45,null,0,0]
[{"$f":"'1 - Preenchimento do plano'!H57","v":0},3,"Qualidade da Madeira e Produtos Florestais 1",null,null,"QMAPF1",45,null,0,0]
[{"$f":"'1 - Preenchimento do plano'!H58","v":0},3,"Qualidade da Madeira e Produtos Florestais 2",null,null,"QMAPF2",45,null,0,{"$f":"A158*B158","v":0}]
[{"$f":"'1 - Preenchimento do plano'!H59","v":0},3,"Silvicultura Aplicada à Espécies de Interesse Comercial",null,null,"SAESIC",45,null,0]
[{"$f":"'1 - Preenchimento do plano'!H60","v":0},3,"Sensoriamento Remoto Aplicado à Engenharia Florestal",null,null,"SERAEF",60,null,0,0]
[{"$f":"'1 - Preenchimento do plano'!H61","v":0},3,"Sistema de Informação Geográfica",null,null,"SINGEO",60,null,0,0]
[{"$f":"'1 - Preenchimento do plano'!H62","v":0},3,"Sociologia Ambiental e Uso dos Recursos Naturais",null,null,"SAMURN",60,null,0,0]
[{"$f":"'1 - Preenchimento do plano'!H63","v":0},3,"Solos e Produção Florestal",null,null,"SOPROF",60,null,0,0]
[{"$f":"'1 - Preenchimento do plano'!H64","v":0},3,"Transformação Mecânica da Madeira ",null,null,"TRAMEM",30,null,0,0]
[{"$f":"'1 - Preenchimento do plano'!H65","v":0},3,"Tópicos Especiais em Caracterização da Madeira e Processos Ind.",null,null,"TECMPI",45,null,0,0]
[{"$f":"'1 - Preenchimento do plano'!H66","v":0},3,"Tópicos Especiais em Ciência do Solo Aplicada à Produção Florestal",null,null,"TECSAP",30,null,0,0]
[{"$f":"'1 - Preenchimento do plano'!H67","v":0},3,"Tópicos Especiais em Crescimento e Produção de Florestas Nativas e Plantadas",null,null,"TECPFN",45,null,0,0]
[{"$f":"'1 - Preenchimento do plano'!H68","v":0},3,"Tópicos Especiais em Ecolog. de Sp. Ftais e Ecossist. Assoc.",null,null,"TESEFE",45,null,0,0]
[{"$f":"'1 - Preenchimento do plano'!H69","v":0},3,"Tópicos Especiais em Silvicultura",null,null,"TESSIL",45,null,0,0]
[{"$f":"'1 - Preenchimento do plano'!H73","v":0},3,"Elaboração de dissertação",null,null,"DISMEF",0,null,0,0]
[{"$f":"'1 - Preenchimento do plano'!I19","v":0},4,"Metodologia Científica e da Pesquisa",null,null,{"$f":"F24","v":"MCPENF"},30,null,0,0]
[{"$f":"'1 - Preenchimento do plano'!I20","v":0},4,"Métodos estatístico-experimentais aplicados a Engenharia Florestal",null,null,"MEXENF",60,null,0,{"$f":"A172*B172","v":0}]
[{"$f":"'1 - Preenchimento do plano'!I21","v":0},4,"Seminarios - Presença",null,null,"SEMEN1",15,null,0,0]
[{"$f":"'1 - Preenchimento do plano'!I22","v":0},4,"Seminários - Apresentador",null,null,"SEMEN2",15,null,0,0]
[{"$f":"'1 - Preenchimento do plano'!I23","v":0},4,"Exame de proficiência em Língua Estrangeira",null,null,"LING ESTRA",0,null,0,0]
[{"$f":"'1 - Preenchimento do plano'!I24","v":0},4,{"$f":"C127","v":"Estágio em docência"},null,null,"EDOMEF",30,null,{"$f":"I127","v":0},0]
[{"$f":"'1 - Preenchimento do plano'!I28","v":0},4,"A Madeira na Construção",null,null,"MADCON",30,null,0,0]
[{"$f":"'1 - Preenchimento do plano'!I29","v":0},4,"Análise de Regressão Aplicada à Engenharia Florestal",null,null,"ARAENF",60,null,0,0]
[{"$f":"'1 - Preenchimento do plano'!I30","v":0},4,"Avaliação de Impactos Ambientais",null,null,"AVIMPA",45,null,0,0]
[{"$f":"'1 - Preenchimento do plano'!I31","v":0},4,"Celulose e Papel",null,null,"CELPAP",30,null,0,{"$f":"A180*B180","v":0}]
[{"$f":"'1 - Preenchimento do plano'!I32","v":0},4,"Colheita Florestal",null,null,"COFLOR",60,null,0,{"$f":"A181*B181","v":0}]
[{"$f":"'1 - Preenchimento do plano'!I33","v":0},4,"Conservação e Uso de Espécies Florestais",null,null,"COUESF",60,null,0,0]
[{"$f":"'1 - Preenchimento do plano'!I34","v":0},4,"Dendrologia",null,null,"DENDRO",60,null,0,0]
[{"$f":"'1 - Preenchimento do plano'!I35","v":0},4,"Descrição e Análise da Vegetação",null,null,"DEANVE",60,null,0,0]
[{"$f":"'1 - Preenchimento do plano'!I36","v":0},4,"Economia Florestal",null,null,"ECOFLO",60,null,0,{"$f":"A185*B185","v":0}]
[{"$f":"'1 - Preenchimento do plano'!I37","v":0},4,{"$f":"C137","v":"Ecofisiologia Vegetal"},null,null,"ECOVEG",{"$f":"G137","v":60},null,{"$f":"I137","v":0},0]
[{"$f":"'1 - Preenchimento do plano'!I38","v":0},4,{"$f":"C138","v":"Ecologia de Florestas Neo-Subtropicais"},null,null,"ECFONT",60,null,{"$f":"I138","v":0},0]
[{"$f":"'1 - Preenchimento do plano'!I39","v":0},4,"Energia e Desenvolvimento",null,null,"ENEDES",45,null,0,{"$f":"A188*B188","v":0}]
[{"$f":"'1 - Preenchimento do plano'!I40","v":0},4,"Engenharia do Ambiente na Indústria Florestal",null,null,"ENAMIF",60,null,0,0]
[{"$f":"'1 - Preenchimento do plano'!I41","v":0},4,"Fauna Edáfica em Ecossistemas Florestais",null,null,"FAEDEF",45,null,0,{"$f":"A190*B190","v":0}]
[{"$f":"'1 - Preenchimento do plano'!I42","v":0},4,"Fitogeografia",null,null,"FITGEO",60,null,0,0]
[{"$f":"'1 - Preenchimento do plano'!I43","v":0},4,"Geoestatística Aplicada a Ciência Florestal",null,null,"GEOACF",60,null,0,{"$f":"A192*B192","v":0}]
[{"$f":"'1 - Preenchimento do plano'!I44","v":0},4,"Genética de Populações de Espécies Florestais",null,null,"GEPOEF",60,null,0,0]
[{"$f":"'1 - Preenchimento do plano'!I45","v":0},4,"Gestão de Recursos Naturais Renováveis",null,null,"GERENA",30,null,0,{"$f":"A194*B194","v":0}]
[{"$f":"'1 - Preenchimento do plano'!I46","v":0},4,"Gestão Florestal",null,null,"GESFLO",45,null,0,{"$f":"A195*B195","v":0}]
[{"$f":"'1 - Preenchimento do plano'!I47","v":0},4,"Hidrologia e Manejo de Bacias",null,null,"HIMABA",60,null,0,0]
[{"$f":"'1 - Preenchimento do plano'!I48","v":0},4,"Implantação e Condução de Povoamentos Florestais",null,null,"IMCPOF",60,null,0,0]
[{"$f":"'1 - Preenchimento do plano'!I49","v":0},4,"Melhoramento Genético e Biotecnologia Florestal",null,null,"MEGEBF",60,null,0,{"$f":"A198*B198","v":0}]
[{"$f":"'1 - Preenchimento do plano'!I50","v":0},4,"Manejo e Conservação da Fauna Silvestre",null,null,"MACOFS",60,null,0,0]
[{"$f":"'1 - Preenchimento do plano'!I51","v":0},4,"Mecânica dos Sólidos Aplicada à Engenharia Florestal",null,null,"MESAEF",60,null,0,0]
[{"$f":"'1 - Preenchimento do plano'!I52","v":0},4,"Modelagem do Crescimento e Produção Florestal",null,null,"MOCPOF",60,null,0,{"$f":"A201*B201","v":0}]
[{"$f":"'1 - Preenchimento do plano'!I53","v":0},4,"Operações Mecanizadas Silviculturais",null,null,"OMESIL",60,null,0,{"$f":"A202*B202","v":0}]
[{"$f":"'1 - Preenchimento do plano'!I54","v":0},4,"Painéis Reconstituídos de Madeira",null,null,{"$f":"F56","v":"PAREMA"},30,null,0,{"$f":"A203*B203","v":0}]
[{"$f":"'1 - Preenchimento do plano'!I55","v":0},4,"Produção e Tecnologia de Sementes Florestais",null,null,"POTSEF",45,null,0,0]
[{"$f":"'1 - Preenchimento do plano'!I56","v":0},4,"Propagação de Espécies Florestais",null,null,"PROESF",45,null,0,0]
[{"$f":"'1 - Preenchimento do plano'!I57","v":0},4,"Qualidade da Madeira e Produtos Florestais 1",null,null,"QMAPF1",45,null,0,0]
[{"$f":"'1 - Preenchimento do plano'!I58","v":0},4,"Qualidade da Madeira e Produtos Florestais 2",null,null,"QMAPF2",45,null,0,{"$f":"A207*B207","v":0}]
[null,4,"Silvicultura Aplicada à Espécies de Interesse Comercial",null,null,"SAESIC",45,null,0]
[{"$f":"'1 - Preenchimento do plano'!I60","v":0},4,"Sensoriamento Remoto Aplicado à Engenharia Florestal",null,null,"SERAEF",60,null,0,0]
[{"$f":"'1 - Preenchimento do plano'!I61","v":0},4,"Sistema de Informação Geográfica",null,null,"SINGEO",60,null,0,0]
[{"$f":"'1 - Preenchimento do plano'!I62","v":0},4,"Sociologia Ambiental e Uso dos Recursos Naturais",null,null,"SAMURN",60,null,0,0]
[{"$f":"'1 - Preenchimento do plano'!I63","v":0},4,"Solos e Produção Florestal",null,null,"SOPROF",60,null,0,0]
[{"$f":"'1 - Preenchimento do plano'!I64","v":0},4,"Transformação Mecânica da Madeira ",null,null,"TRAMEM",30,null,0,0]
[{"$f":"'1 - Preenchimento do plano'!I65","v":0},4,"Tópicos Especiais em Caracterização da Madeira e Processos Ind.",null,null,"TECMPI",45,null,0,0]
[{"$f":"'1 - Preenchimento do plano'!I66","v":0},4,"Tópicos Especiais em Ciência do Solo Aplicada à Produção Florestal",null,null,"TECSAP",30,null,0,0]
[{"$f":"'1 - Preenchimento do plano'!I67","v":0},4,"Tópicos Especiais em Crescimento e Produção de Florestas Nativas e Plantadas",null,null,"TECPFN",45,null,0,0]
[{"$f":"'1 - Preenchimento do plano'!I68","v":0},4,"Tópicos Especiais em Ecolog. de Sp. Ftais e Ecossist. Assoc.",null,null,"TESEFE",45,null,0,0]
[{"$f":"'1 - Preenchimento do plano'!I69","v":0},4,"Tópicos Especiais em Silvicultura",null,null,"TESSIL",{"$f":"G169","v":45},null,0,0]
[{"$f":"'1 - Preenchimento do plano'!I73","v":0},4,"Elaboração de dissertação",null,null,"DISMEF",0,null,0,0]
[null,"DISCIPLINAS COM SOLICITAÇÃO DE DISPENSA, APROVEITAMENTO OU VALIDAÇÃO",null,null,null,null,null,null,null,1]
[{"$f":"'1 - Preenchimento do plano'!J19","v":0},"x",{"$f":"C24","v":"Metodologia Científica e da Pesquisa"},null,null,{"$f":"F24","v":"MCPENF"},30,null,{"$f":"I24","v":0},{"$f":"A221","v":0}]
[{"$f":"'1 - Preenchimento do plano'!J20","v":0},"x","Métodos estatístico-experimentais aplicados a Engenharia Florestal",null,null,"MEXENF",60,null,0,{"$f":"A222","v":0}]
[0,"x","Seminarios - Presença",null,null,"SEMEN1",15,null,0,0]
[0,"x","Seminários - Apresentador",null,null,"SEMEN2",15,null,0,0]
[{"$f":"'1 - Preenchimento do plano'!K23","v":0},"x","Exame de proficiência em Língua Estrangeira",null,null,"LING ESTRA",0,null,0,0]
[{"$f":"'1 - Preenchimento do plano'!K24","v":0},"x","Estágio em docência",null,null,"EDOMEF",30,null,0,0]
[{"$f":"'1 - Preenchimento do plano'!J28","v":0},"x","A Madeira na Construção",null,null,"MADCON",30,null,0,0]
[{"$f":"'1 - Preenchimento do plano'!J29","v":0},"x","Análise de Regressão Aplicada à Engenharia Florestal",null,null,"ARAENF",60,null,0,0]
[{"$f":"'1 - Preenchimento do plano'!J30","v":0},"x","Avaliação de Impactos Ambientais",null,null,"AVIMPA",45,null,0,0]
[{"$f":"'1 - Preenchimento do plano'!J31","v":0},"x","Celulose e Papel",null,null,"CELPAP",30,null,0,{"$f":"A230","v":0}]
[{"$f":"'1 - Preenchimento do plano'!J33","v":0},"x",{"$f":"C35","v":"Conservação e Uso de Espécies Florestais"},null,null,{"$f":"F35","v":"COUESF"},60,null,{"$f":"I35","v":0},0]
[{"$f":"'1 - Preenchimento do plano'!J34","v":0},"x",{"$f":"C36","v":"Dendrologia"},null,null,"DENDRO",60,null,{"$f":"I36","v":0},0]
[{"$f":"'1 - Preenchimento do plano'!J35","v":0},"x",{"$f":"C37","v":"Descrição e Análise da Vegetação"},null,null,"DEANVE",60,null,{"$f":"I37","v":0},0]
[{"$f":"'1 - Preenchimento do plano'!J37","v":0},"x",{"$f":"C39","v":"Ecofisiologia Vegetal"},null,null,{"$f":"F39","v":"ECOVEG"},60,null,{"$f":"I39","v":0},0]
[{"$f":"'1 - Preenchimento do plano'!J38","v":0},"x",{"$f":"C40","v":"Ecologia de Florestas Neo-Subtropicais"},null,null,"ECFONT",60,null,{"$f":"I40","v":0},0]
[{"$f":"'1 - Preenchimento do plano'!J39","v":0},"x",{"$f":"C41","v":"Energia e Desenvolvimento"},null,null,"ENEDES",45,null,{"$f":"I41","v":0},{"$f":"A236","v":0}]
[{"$f":"'1 - Preenchimento do plano'!J40","v":0},"x",{"$f":"C42","v":"Engenharia do Ambiente na Indústria Florestal"},null,null,"ENAMIF",60,null,{"$f":"I42","v":0},0]
[{"$f":"'1 - Preenchimento do plano'!J42","v":0},"x",{"$f":"C44","v":"Fitogeografia"},null,null,{"$f":"F44","v":"FITGEO"},{"$f":"G44","v":60},null,{"$f":"I44","v":0},0]
[{"$f":"'1 - Preenchimento do plano'!J44","v":0},"x",{"$f":"C46","v":"Genética de Populações de Espécies Florestais"},null,null,{"$f":"F46","v":"GEPOEF"},{"$f":"G46","v":60},null,{"$f":"I46","v":0},0]
[{"$f":"'1 - Preenchimento do plano'!J45","v":0},"x",{"$f":"C47","v":"Gestão de Recursos Naturais Renováveis"},null,null,{"$f":"F47","v":"GERENA"},{"$f":"G47","v":30},null,{"$f":"I47","v":0},{"$f":"A240","v":0}]
[{"$f":"'1 - Preenchimento do plano'!J47","v":0},"x",{"$f":"C49","v":"Hidrologia e Manejo de Bacias"},null,null,{"$f":"F49","v":"HIMABA"},{"$f":"G49","v":60},null,{"$f":"I49","v":0},0]
[{"$f":"'1 - Preenchimento do plano'!J48","v":0},"x",{"$f":"C50","v":"Implantação e Condução de Povoamentos Florestais"},null,null,{"$f":"F50","v":"IMCPOF"},{"$f":"G50","v":60},null,{"$f":"I50","v":0},0]
[{"$f":"'1 - Preenchimento do plano'!J50","v":0},"x",{"$f":"C52","v":"Manejo e Conservação da Fauna Silvestre"},null,null,{"$f":"F52","v":"MACOFS"},60,null,{"$f":"I52","v":0},0]
[{"$f":"'1 - Preenchimento do plano'!J51","v":0},"x",{"$f":"C53","v":"Mecânica dos Sólidos Aplicada à Engenharia Florestal"},null,null,"MESAEF",60,null,{"$f":"I53","v":0},0]
[{"$f":"'1 - Preenchimento do plano'!J52","v":0},"x",{"$f":"C54","v":"Modelagem do Crescimento e Produção Florestal"},null,null,"MOCPOF",60,null,{"$f":"I54","v":0},{"$f":"A245","v":0}]
[{"$f":"'1 - Preenchimento do plano'!J54","v":0},"x",{"$f":"C56","v":"Painéis Reconstituídos de Madeira"},null,null,{"$f":"F56","v":"PAREMA"},30,null,{"$f":"I56","v":0},{"$f":"A246","v":0}]
[{"$f":"'1 - Preenchimento do plano'!J55","v":0},"x",{"$f":"C57","v":"Produção e Tecnologia de Sementes Florestais"},null,null,"POTSEF",45,null,{"$f":"I57","v":0},0]
[{"$f":"'1 - Preenchimento do plano'!J56","v":0},"x",{"$f":"C58","v":"Propagação de Espécies Florestais"},null,null,"PROESF",45,null,{"$f":"I58","v":0},0]
[{"$f":"'1 - Preenchimento do plano'!J57","v":0},"x",{"$f":"C59","v":"Qualidade da Madeira e Produtos Florestais 1"},null,null,"QMAPF1",45,null,{"$f":"I59","v":0},0]
[{"$f":"'1 - Preenchimento do plano'!J58","v":0},"x",{"$f":"C60","v":"Qualidade da Madeira e Produtos Florestais 2"},null,null,"QMAPF2",45,null,{"$f":"I60","v":0},{"$f":"A250","v":0}]
[{"$f":"'1 - Preenchimento do plano'!J60","v":0},"x",{"$f":"C62","v":"Sensoriamento Remoto Aplicado à Engenharia Florestal"},null,null,{"$f":"F62","v":"SERAEF"},60,null,{"$f":"I62","v":0},0]
[{"$f":"'1 - Preenchimento do plano'!J61","v":0},"x","Sistema de Informação Geográfica",null,null,{"$f":"F63","v":"SINGEO"},60,null,0,0]
[{"$f":"'1 - Preenchimento do plano'!J62","v":0},"x","Sociologia Ambiental e Uso dos Recursos Naturais",null,null,{"$f":"F64","v":"SAMURN"},60,null,0,0]
[{"$f":"'1 - Preenchimento do plano'!J63","v":0},"x","Solos e Produção Florestal",null,null,{"$f":"F65","v":"SOPROF"},60,null,0,0]
[{"$f":"'1 - Preenchimento do plano'!J64","v":0},"x","Transformação Mecânica da Madeira ",null,null,{"$f":"F66","v":"TRAMEM"},30,null,0,0]
[{"$f":"'1 - Preenchimento do plano'!J65","v":0},"x","Tópicos Especiais em Caracterização da Madeira e Processos Ind.",null,null,{"$f":"F67","v":"TECMPI"},45,null,0,0]
[{"$f":"'1 - Preenchimento do plano'!J66","v":0},"x","Tópicos Especiais em Ciência do Solo Aplicada à Produção Florestal",null,null,{"$f":"F68","v":"TECSAP"},30,null,0,0]
[{"$f":"'1 - Preenchimento do plano'!J67","v":0},"x","Tópicos Especiais em Crescimento e Produção de Florestas Nativas e Plantadas",null,null,{"$f":"F69","v":"TECPFN"},45,null,0,0]
[{"$f":"'1 - Preenchimento do plano'!J68","v":0},"x","Tópicos Especiais em Ecolog. de Sp. Ftais e Ecossist. Assoc.",null,null,{"$f":"F70","v":"TESEFE"},45,null,0,0]
[{"$f":"'1 - Preenchimento do plano'!J69","v":0},"x","Tópicos Especiais em Silvicultura",null,null,{"$f":"F71","v":"TESSIL"},45,null,0,0]
[0,"x","Elaboração de dissertação",null,null,{"$f":"F72","v":"DISMEF"},0,null,{"$f":"I72","v":0},0]
[{"$f":"'1 - Preenchimento do plano'!M77","v":0},"x",{"$f":"'1 - Preenchimento do plano'!C77","v":0},null,null,"x","x",null,{"$f":"'1 - Preenchimento do plano'!O77","v":0},0]
[{"$f":"'1 - Preenchimento do plano'!M78","v":0},"x",{"$f":"'1 - Preenchimento do plano'!C78","v":0},null,null,"x","x",null,{"$f":"'1 - Preenchimento do plano'!O78","v":0},0]
[{"$f":"'1 - Preenchimento do plano'!M79","v":0},"x",{"$f":"'1 - Preenchimento do plano'!C79","v":0},null,null,"x","x",null,{"$f":"'1 - Preenchimento do plano'!O79","v":0},0]
[{"$f":"'1 - Preenchimento do plano'!M80","v":0},"x",{"$f":"'1 - Preenchimento do plano'!C80","v":0},null,null,"x","x",null,{"$f":"'1 - Preenchimento do plano'!O80","v":0},0]
[{"$f":"'1 - Preenchimento do plano'!M81","v":0},"x",{"$f":"'1 - Preenchimento do plano'!C81","v":0},null,null,"x","x",null,{"$f":"'1 - Preenchimento do plano'!O81","v":0},0]
[{"$f":"'1 - Preenchimento do plano'!M82","v":0},"x",{"$f":"'1 - Preenchimento do plano'!C82","v":0},null,null,"x","x",null,{"$f":"'1 - Preenchimento do plano'!O82","v":0},0]
[null,null,null,null,null,"TOTAL:",null,null,{"$f":"'1 - Preenchimento do plano'!L83","v":0},1]
[]
[]
[]
[]
[]
[]
[]
[]
[]
[]
[null,"Enquadra-se em casos especiais que precise de análise de caso pela Comissão?",null,null,{"$f":"IF('1 - Preenchimento do plano'!M97=11,\"não\",\"sim\")","v":"sim"}]

{"sheet":"3 - Justificativa membro ext.","index":3,"n_rows":19,"n_cols":9,"rows_kept":19,"cut":false,"hidden":false,"merged":[]}
[]
[]
[]
[]
[]
[]
[]
[]
[]
[]
[]
[]
[]
[null,"Nome:",{"$f":"'1 - Preenchimento do plano'!C8","v":0},null,null,"Matrícula:",{"$f":"'1 - Preenchimento do plano'!C9","v":0}]
[]
[null,"Comitê de Orientação"]
[null,"Orientador:",{"$f":"'1 - Preenchimento do plano'!C12","v":0},null,null,"Ingresso:",{"$f":"'1 - Preenchimento do plano'!X10","v":0},"/",{"$f":"'1 - Preenchimento do plano'!X11","v":0}]
[null,"2º Membro:",{"$f":"'1 - Preenchimento do plano'!C13","v":0}]
[null,"3º Membro:",{"$f":"'1 - Preenchimento do plano'!C14","v":0}]